Portfolio,Expense Area,Cost Centre,Expense Type,Account Code,Amount,Supplier Name,SupplierId,Pay Date,Transaction No.,,VAT No.,Co. Reg. No.,VAT No.,Voucher Type,�,Trans Date
Environment and Public Realm,Grounds Maintenance,PKS20,Vehicle Repair and Maintenance,200,56,Autolec Services (Rugby),100021,13/09/2018,10263434,TC,,,273822547,PN,512.58,43348
Environment and Public Realm,Domestic Waste Collection/Recycling,REF00,Vehicle Repair and Maintenance,200,144,Autolec Services (Rugby),100021,13/09/2018,10263434,TC,,,273822547,PN,512.58,43348
Environment and Public Realm,Regulatory Services,REG00,Vehicle Repair and Maintenance,200,51.55,Autolec Services (Rugby),100021,13/09/2018,10263434,TC,,,273822547,PN,512.58,43348
Environment and Public Realm,Street Cleansing General,STC00,Vehicle Repair and Maintenance,200,7.9,Autolec Services (Rugby),100021,13/09/2018,10263434,TC,,,273822547,PN,512.58,43348
Environment and Public Realm,Trade Waste Collection,WWC01,Vehicle Repair and Maintenance,200,163,Autolec Services (Rugby),100021,13/09/2018,10263434,TC,,,273822547,PN,512.58,43348
Environment and Public Realm,Grounds Maintenance,PKS20,Materials,303,4.7,Autolec Services (Rugby),100021,13/09/2018,10263434,TC,,,273822547,PN,512.58,43348
Housing Revenue Account,Gas Heating Systems,UMR01,R&M External Contractors,100,76.49,AWM Electrical Contractors Ltd,100051,13/09/2018,10263520,CS,,7430696,661675907,PN,5345.68,43350
Housing Revenue Account,Electrical Inspections,UMR04,R&M External Contractors,100,1354.15,AWM Electrical Contractors Ltd,100051,13/09/2018,10263520,CS,,7430696,661675907,PN,5345.68,43350
Housing Revenue Account,Electrical maintenance,UMR10,R&M External Contractors,100,2242.73,AWM Electrical Contractors Ltd,100051,13/09/2018,10263520,CS,,7430696,661675907,PN,5345.68,43350
Housing Revenue Account,Miscellaneous Unplanned Maintenance and Repair,UMR17,R&M External Contractors,100,714.86,AWM Electrical Contractors Ltd,100051,13/09/2018,10263520,CS,,7430696,661675907,PN,5345.68,43350
Capital Housing Revenue Account,Disabled Adaptations,HCR01,Capital Contract Payments,5000,66.5,AWM Electrical Contractors Ltd,100051,13/09/2018,10263520,CS,,7430696,661675907,PN,5345.68,43350
Housing Revenue Account,Repairs and Maintenance - Void works,UMR09,R&M External Contractors,100,786.6,AWM Electrical Contractors Ltd,100051,13/09/2018,10263521,CS,,7430696,661675907,PN,943.92,43350
Housing Revenue Account,Electrical Inspections,UMR04,R&M External Contractors,100,95.16,AWM Electrical Contractors Ltd,100051,20/09/2018,10263685,CS,,7430696,661675907,PN,3757.07,43356
Housing Revenue Account,Electrical maintenance,UMR10,R&M External Contractors,100,3035.73,AWM Electrical Contractors Ltd,100051,20/09/2018,10263685,CS,,7430696,661675907,PN,3757.07,43356
Communities and Homes,CAST - Private Sector Leasing,CAS03,R&M External Contractors,100,143.34,AWM Electrical Contractors Ltd,100051,27/09/2018,10263820,CS,,7430696,661675907,PN,3473.82,43364
Housing Revenue Account,Repairs and Maintenance - Void works,UMR09,R&M External Contractors,100,2751.51,AWM Electrical Contractors Ltd,100051,27/09/2018,10263820,CS,,7430696,661675907,PN,3473.82,43364
Housing Revenue Account,Electrical maintenance,UMR10,R&M External Contractors,100,267.68,AWM Electrical Contractors Ltd,100051,27/09/2018,10263821,CS,,7430696,661675907,PN,2784.49,43364
Housing Revenue Account,Miscellaneous Unplanned Maintenance and Repair,UMR17,R&M External Contractors,100,21.5,AWM Electrical Contractors Ltd,100051,27/09/2018,10263821,CS,,7430696,661675907,PN,2784.49,43364
Capital Housing Revenue Account,Disabled Adaptations,HCR01,Capital Contract Payments,5000,2031.23,AWM Electrical Contractors Ltd,100051,27/09/2018,10263821,CS,,7430696,661675907,PN,2784.49,43364
Housing Revenue Account,Repairs and Maintenance - Void works,UMR09,R&M External Contractors,100,930.26,AWM Electrical Contractors Ltd,100051,27/09/2018,10263822,CS,,7430696,661675907,PN,1142.11,43364
Housing Revenue Account,Multi-Storey Flats,MSF00,Other Miscellaneous Expenses,444,21.5,AWM Electrical Contractors Ltd,100051,27/09/2018,10263822,CS,,7430696,661675907,PN,1142.11,43364
Communities and Homes,CAST - Private Sector Leasing,CAS03,R&M External Contractors,100,76.44,AWM Electrical Contractors Ltd,100051,27/09/2018,10263823,CS,,7430696,661675907,PN,6018.14,43364
Housing Revenue Account,Gas Heating Systems,UMR01,R&M External Contractors,100,21.5,AWM Electrical Contractors Ltd,100051,27/09/2018,10263823,CS,,7430696,661675907,PN,6018.14,43364
Housing Revenue Account,Electrical maintenance,UMR10,R&M External Contractors,100,3821.23,AWM Electrical Contractors Ltd,100051,27/09/2018,10263823,CS,,7430696,661675907,PN,6018.14,43364
Housing Revenue Account,Miscellaneous Unplanned Maintenance and Repair,UMR17,R&M External Contractors,100,1095.95,AWM Electrical Contractors Ltd,100051,27/09/2018,10263823,CS,,7430696,661675907,PN,6018.14,43364
Housing Revenue Account,Repairs and Maintenance - Void works,UMR09,R&M External Contractors,100,2996.04,AWM Electrical Contractors Ltd,100051,27/09/2018,10264013,CS,,7430696,661675907,PN,3595.25,43368
Housing Revenue Account,Electrical Inspections,UMR04,R&M External Contractors,100,840.84,AWM Electrical Contractors Ltd,100051,27/09/2018,10264049,CS,,7430696,661675907,PN,1060.61,43369
Housing Revenue Account,Electrical maintenance,UMR10,R&M External Contractors,100,43,AWM Electrical Contractors Ltd,100051,27/09/2018,10264049,CS,,7430696,661675907,PN,1060.61,43369
Housing Revenue Account,Electrical maintenance,UMR10,R&M External Contractors,100,795.97,AWM Electrical Contractors Ltd,100051,27/09/2018,10264050,CS,,7430696,661675907,PN,955.16,43369
Housing Revenue Account,Gas Heating Systems,UMR01,R&M External Contractors,100,59.24,AWM Electrical Contractors Ltd,100051,27/09/2018,10264051,CS,,7430696,661675907,PN,3855.77,43369
Housing Revenue Account,Electrical Inspections,UMR04,R&M External Contractors,100,1792.18,AWM Electrical Contractors Ltd,100051,27/09/2018,10264051,CS,,7430696,661675907,PN,3855.77,43369
Housing Revenue Account,Electrical maintenance,UMR10,R&M External Contractors,100,700.85,AWM Electrical Contractors Ltd,100051,27/09/2018,10264051,CS,,7430696,661675907,PN,3855.77,43369
Housing Revenue Account,Miscellaneous Unplanned Maintenance and Repair,UMR17,R&M External Contractors,100,21.5,AWM Electrical Contractors Ltd,100051,27/09/2018,10264051,CS,,7430696,661675907,PN,3855.77,43369
Capital Housing Revenue Account,Fire Risk Prevention Works,HCE18,Capital Contract Payments,5000,639.37,AWM Electrical Contractors Ltd,100051,27/09/2018,10264051,CS,,7430696,661675907,PN,3855.77,43369
Capital Housing Revenue Account,Kitchen Modifications,HIK10,Capital Contract Payments,5000,2652,A C E Carpentry & Joinery Contractors Ltd,100085,06/09/2018,10263233,CS,,4120783,729422428,PN,3182.4,43343
Housing Revenue Account,Multi-Storey Flats,MSF00,Other Miscellaneous Expenses,444,1515,A C E Carpentry & Joinery Contractors Ltd,100085,20/09/2018,10263683,CS,,4120783,729422428,PN,4838.23,43356
Capital Housing Revenue Account,Kitchen Modifications,HIK10,Capital Contract Payments,5000,2516.86,A C E Carpentry & Joinery Contractors Ltd,100085,20/09/2018,10263683,CS,,4120783,729422428,PN,4838.23,43356
Capital Housing Revenue Account,Kitchen Modifications,HIK10,Capital Contract Payments,5000,15101.16,A C E Carpentry & Joinery Contractors Ltd,100085,20/09/2018,10263753,CS,,4120783,729422428,PN,18121.39,43357
Communities and Homes,Maintenance of Customer Services Systems,CIS21,Software Maintenance,374,36745.01,Unit4 Business Software Ltd,100122,27/09/2018,10263942,TC,,,358179027,PN,44094.01,43367
Corporate Resources,Council Tax and NNDR Collection,CTX01,External Legal Costs,741,106.67,Bristow & Sutor,100159,06/09/2018,10263237,TC,,,294694111,PN,652.74,43343
Corporate Resources,Council Tax and NNDR Collection,CTX01,External Legal Costs,741,486.44,Bristow & Sutor,100159,13/09/2018,10263510,TC,,,294694111,PN,1323.11,43350
Corporate Resources,Council Tax and NNDR Collection,CTX01,External Legal Costs,741,84.74,Bristow & Sutor,100159,20/09/2018,10263742,TC,,,294694111,PN,1248.16,43357
Corporate Resources,Council Tax and NNDR Collection,CTX01,External Legal Costs,741,75,Bristow & Sutor,100159,27/09/2018,10263854,TC,,,294694111,PN,626.75,43367
Communities and Homes,Universal Credit Support,CAS04,Other Agencies,734,1071,Benn Partnership Centre,100235,06/09/2018,10263402,TC,,,,PI,1071,43347
Corporate Resources,Corporate Property R&M,CPA01,R&M External Contractors,100,2498.78,Chillaire Service & Maintenance Ltd,100305,13/09/2018,10263284,TC,,4622016,806802244,PN,2998.54,43346
Corporate Resources,Corporate Property R&M,CPA01,R&M External Contractors,100,1637.97,Chillaire Service & Maintenance Ltd,100305,20/09/2018,10263658,TC,,4622016,806802244,PN,1965.56,43355
Communities and Homes,WTHEIP - Warwickshire Together Homelessness Early Intervention Project,HIP00,Training fees,11,769,Coventry City Council,100320,06/09/2018,10263198,TC,,,GB273422763,PN,769,43342
Environment and Public Realm,Domestic Waste Collection/Recycling,REF00,External Contractor & Operator,742,570.81,Cannon Hygiene Ltd,100436,13/09/2018,10263399,TC,,,209918933,PI,684.97,43347
Environment and Public Realm,Domestic Waste Collection/Recycling,REF00,Vehicle Repair and Maintenance,200,757.5,Crouch Recovery,100447,27/09/2018,10263955,TC,,,115 6884 55,PN,909,43367
Communities and Homes,ITC & Support Services,CIS10,Photocopying,354,5088.21,Canon (UK) Limited,100514,13/09/2018,10263601,TC,,1264300,523797128,PN,6105.85,43353
Communities and Homes,ITC & Support Services,CIS10,Photocopying,354,3485.91,Canon (UK) Limited,100514,13/09/2018,10263602,TC,,1264300,523797128,PN,4183.09,43353
Environment and Public Realm,Domestic Waste Collection/Recycling,REF00,Vehicle Repair and Maintenance,200,1431.51,Dennis Eagle Ltd,100559,13/09/2018,10263017,TC,,,272 4968 27,PN,1717.81,43335
Environment and Public Realm,Domestic Waste Collection/Recycling,REF00,Vehicle Repair and Maintenance,200,812.13,Dennis Eagle Ltd,100559,27/09/2018,10263018,TC,,,272 4968 27,PN,974.56,43335
Environment and Public Realm,Domestic Waste Collection/Recycling,REF00,Vehicle Repair and Maintenance,200,581.31,Dennis Eagle Ltd,100559,13/09/2018,10263212,TC,,,272 4968 27,PN,697.57,43342
Environment and Public Realm,Domestic Waste Collection/Recycling,REF00,Vehicle Repair and Maintenance,200,618.61,Dennis Eagle Ltd,100559,27/09/2018,10263394,TC,,,272 4968 27,PN,742.33,43347
Environment and Public Realm,Domestic Waste Collection/Recycling,REF00,Vehicle Repair and Maintenance,200,554.51,Dennis Eagle Ltd,100559,13/09/2018,10263411,TC,,,272 4968 27,PN,665.41,43348
Environment and Public Realm,Domestic Waste Collection/Recycling,REF00,Vehicle Repair and Maintenance,200,641.19,Dennis Eagle Ltd,100559,27/09/2018,10263571,TC,,,272 4968 27,PN,769.43,43353
Environment and Public Realm,Domestic Waste Collection/Recycling,REF00,Vehicle Repair and Maintenance,200,837.7,Dennis Eagle Ltd,100559,20/09/2018,10263656,TC,,,272 4968 27,PN,1005.24,43355
Environment and Public Realm,Domestic Waste Collection/Recycling,REF00,Vehicle Repair and Maintenance,200,-641.19,Dennis Eagle Ltd,100559,27/09/2018,10263934,TC,,,272 4968 27,PN,-769.43,43367
Corporate Resources,Corporate Property R&M,CPA01,R&M External Contractors,100,748,Dunchurch Services (Rugby) Ltd,100565,13/09/2018,10263474,CS,,2693688,623535748,PN,897.6,43349
Environment and Public Realm,Crematorium,CRM00,Gas,131,1381.47,ESPO,100641,27/09/2018,10263917,TC,,,705180561,PN,1657.76,43367
Housing Revenue Account,Unplanned Maintenance and Repair,UMR00,Materials,303,542.81,Nationwide Windows Ltd,100808,27/09/2018,10263760,CS,,2025613,792405224,PN,651.37,43360
Housing Revenue Account,Unplanned Maintenance and Repair,UMR00,Materials,303,-542.81,Nationwide Windows Ltd,100808,27/09/2018,10263777,CS,,2025613,792405224,PN,-651.37,43360
Environment and Public Realm,Garage,WVR00,Materials,303,594,Fuchs Lubricants (UK) Plc,100832,13/09/2018,10263364,TC,,2412689,284166443,PN,712.8,43347
Environment and Public Realm,Grass Cutting- Parishes,PKS13,External Contractor & Operator,742,1263,Grandborough Parish Council,100889,27/09/2018,10263814,TC,,,,PN,1263,43364
Environment and Public Realm,Britain In Bloom,PKS09,External Contractor & Operator,742,444.17,Glass D Sign,100907,20/09/2018,10263772,TC,,,660 9956 93,PN,533,43360
Environment and Public Realm,Parks,PKS00,Maintenance of Equipment,301,1889.98,GB Sport & Leisure UK Ltd,100920,06/09/2018,10263262,TC,,,634552540,PI,2267.97,43346
Corporate Resources,Corporate Property Management,CPM00,Asset Management Expenses,448,1730.99,Godfrey-Payton Chartered Surveyors,100937,27/09/2018,10263873,TC,,,272440179,PN,2077.19,43367
Housing Revenue Account,Pennington Street/Round Street AP,AGP72,Window Cleaning,172,600,G C & C Window Cleaning,100943,06/09/2018,10263297,TC,,,,PN,600,43346
Housing Revenue Account,Pennington Street/Round Street AP,AGP72,Window Cleaning,172,700,G C & C Window Cleaning,100943,06/09/2018,10263298,TC,,,,PN,700,43346
Housing Revenue Account,Miscellaneous Unplanned Maintenance and Repair,UMR17,Capital Contract Payments,5000,2475,Hardall International Limited,101091,27/09/2018,10264021,TC,,2174882,478041536,PN,2970,43369
Environment and Public Realm,WSU Depot,WDP00,New Equipment,300,682.88,IE Office Equipment Ltd,101114,06/09/2018,10263263,CS,,,661544339,PI,819.46,43346
Corporate Resources,Town Hall,OFF00,New Equipment,300,651.88,IE Office Equipment Ltd,101114,13/09/2018,10263617,CS,,,661544339,PI,782.26,43353
Corporate Resources,Town Hall,OFF00,Furniture,302,811.2,IE Office Equipment Ltd,101114,27/09/2018,10263980,CS,,,661544339,PI,973.44,43367
Housing Revenue Account,Control Centre (HRA),CCE00,New Equipment,300,1850,Chubb Systems LTD,101154,06/09/2018,10263257,TC,,,4394 75808,PI,2220,43343
Housing Revenue Account,Unplanned Maintenance and Repair,UMR00,External Contractor & Operator,742,1245.73,Clews Recycling Limited,101213,06/09/2018,10263203,TC,,,747316619,PN,1494.88,43342
Housing Revenue Account,Unplanned Maintenance and Repair,UMR00,External Contractor & Operator,742,733.4,Clews Recycling Limited,101213,13/09/2018,10263353,TC,,,747316619,PN,880.08,43347
Housing Revenue Account,Unplanned Maintenance and Repair,UMR00,External Contractor & Operator,742,657.36,Clews Recycling Limited,101213,13/09/2018,10263604,TC,,,747316619,PN,788.83,43353
Housing Revenue Account,Unplanned Maintenance and Repair,UMR00,External Contractor & Operator,742,665.44,Clews Recycling Limited,101213,27/09/2018,10263861,TC,,,747316619,PN,798.53,43367
Communities and Homes,Central Business Support Services,CSS15,Photocopying,354,3232.74,Neopost Ltd,101365,13/09/2018,10263633,TC,,,597265489,PN,3879.29,43355
Growth and Investment,Visitor Centre,VSC00,Events Tickets - Zero Rated,1405,1032.51,National Express Ltd,101392,13/09/2018,10263285,TC,,,487038714,PN,1032.51,43346
Environment and Public Realm,Parks,PKS00,R&M External Contractors,100,660,PJT Pumping Services,101438,06/09/2018,10263070,TC,,,618143943,PI,792,43336
Environment and Public Realm,Parks,PKS00,R&M External Contractors,100,350,Post To Post Fencing,101490,27/09/2018,10263170,CS,,,7729350133,PI,1602,43341
Environment and Public Realm,Parks,PKS00,Maintenance of Equipment,301,575,Post To Post Fencing,101490,27/09/2018,10263170,CS,,,7729350133,PI,1602,43341
Environment and Public Realm,Parks,PKS00,External Contractor & Operator,742,375,Post To Post Fencing,101490,27/09/2018,10263170,CS,,,7729350133,PI,1602,43341
Environment and Public Realm,Section 106 Grounds Maintenance,PKS16,External Contractor & Operator,742,35,Post To Post Fencing,101490,27/09/2018,10263170,CS,,,7729350133,PI,1602,43341
Environment and Public Realm,Parks,PKS00,External Contractor & Operator,742,2080,Post To Post Fencing,101490,27/09/2018,10263321,CS,,,7729350133,PI,2496,43346
Environment and Public Realm,Parks,PKS00,External Contractor & Operator,742,1875,Post To Post Fencing,101490,13/09/2018,10263595,CS,,,7729350133,PI,2250,43353
Capital Housing Revenue Account,Disabled Adaptations,HCR01,Capital Contract Payments,5000,1000,Reeds Plumbing & Heating Contractors Ltd,101504,13/09/2018,10263523,CS,,4468782,418 5847 32,PN,21748.58,43353
Capital Housing Revenue Account,Bathroom Modifications,HIS01,Capital Contract Payments,5000,17123.82,Reeds Plumbing & Heating Contractors Ltd,101504,13/09/2018,10263523,CS,,4468782,418 5847 32,PN,21748.58,43353
Capital Housing Revenue Account,Disabled Adaptations,HCR01,Capital Contract Payments,5000,1030,Reeds Plumbing & Heating Contractors Ltd,101504,20/09/2018,10263796,CS,,4468782,418 5847 32,PN,12475.51,43362
Capital Housing Revenue Account,Bathroom Modifications,HIS01,Capital Contract Payments,5000,9366.26,Reeds Plumbing & Heating Contractors Ltd,101504,20/09/2018,10263796,CS,,4468782,418 5847 32,PN,12475.51,43362
Capital Housing Revenue Account,Disabled Adaptations,HCR01,Capital Contract Payments,5000,3650,Reeds Plumbing & Heating Contractors Ltd,101504,27/09/2018,10263813,CS,,4468782,418 5847 32,PN,24644.76,43364
Capital Housing Revenue Account,Kitchen Modifications,HIK10,Capital Contract Payments,5000,4656,Reeds Plumbing & Heating Contractors Ltd,101504,27/09/2018,10263813,CS,,4468782,418 5847 32,PN,24644.76,43364
Capital Housing Revenue Account,Bathroom Modifications,HIS01,Capital Contract Payments,5000,12231.3,Reeds Plumbing & Heating Contractors Ltd,101504,27/09/2018,10263813,CS,,4468782,418 5847 32,PN,24644.76,43364
Capital Communities and Homes,Biart Place - Capital,BIA00,Capital Compensation Payments,5010,1454.88,Rugby Borough Council,101516,06/09/2018,10263230,NT,,,,PN,1454.88,43342
Capital Communities and Homes,Biart Place - Capital,BIA00,Capital Compensation Payments,5010,712.52,Rugby Borough Council,101516,06/09/2018,10263322,NT,,,,PN,712.52,43346
Capital Communities and Homes,Biart Place - Capital,BIA00,Capital Compensation Payments,5010,1411.44,Rugby Borough Council,101516,06/09/2018,10263390,NT,,,,PN,1411.44,43347
Capital Communities and Homes,Biart Place - Capital,BIA00,Capital Compensation Payments,5010,1467.33,Rugby Borough Council,101516,13/09/2018,10263570,NT,,,,PN,1467.33,43353
Environment and Public Realm,Domestic Waste Collection/Recycling,REF00,Vehicle Repair and Maintenance,200,465,Rugby Mobile Windscreens,101520,27/09/2018,10263992,TC,,,307407185,PN,558,43368
Growth and Investment,Art Gallery and Museum,AGM00,Postage & Distribution,370,0.4,Royal Mail,101554,27/09/2018,10263288,TC,,,,PN,2029.98,43346
Growth and Investment,Building Control Services,BCS00,Postage & Distribution,370,1.96,Royal Mail,101554,27/09/2018,10263288,TC,,,,PN,2029.98,43346
Communities and Homes,Community Advice & Support Team,CAS00,Postage & Distribution,370,356.96,Royal Mail,101554,27/09/2018,10263288,TC,,,,PN,2029.98,43346
Communities and Homes,Central Business Support Services,CSS15,Postage & Distribution,370,417.73,Royal Mail,101554,27/09/2018,10263288,TC,,,,PN,2029.98,43346
Corporate Resources,Council Tax and NNDR Collection,CTX01,Postage & Distribution,370,474.54,Royal Mail,101554,27/09/2018,10263288,TC,,,,PN,2029.98,43346
Executive Director Office,Electoral Registration,ERG00,Postage & Distribution,370,70.48,Royal Mail,101554,27/09/2018,10263288,TC,,,,PN,2029.98,43346
Housing Revenue Account,Supervision and Management General,MAN00,Postage & Distribution,370,86.52,Royal Mail,101554,27/09/2018,10263288,TC,,,,PN,2029.98,43346
Growth and Investment,Planning General/Income,PLN00,Postage & Distribution,370,217.97,Royal Mail,101554,27/09/2018,10263288,TC,,,,PN,2029.98,43346
Environment and Public Realm,Domestic Waste Collection/Recycling,REF00,Postage & Distribution,370,9.54,Royal Mail,101554,27/09/2018,10263288,TC,,,,PN,2029.98,43346
Environment and Public Realm,Household Green Waste Collections,REF06,Postage & Distribution,370,37.7,Royal Mail,101554,27/09/2018,10263288,TC,,,,PN,2029.98,43346
Housing Revenue Account,Unplanned Maintenance and Repair,UMR00,Postage & Distribution,370,1.6,Royal Mail,101554,27/09/2018,10263288,TC,,,,PN,2029.98,43346
Growth and Investment,Visitor Centre,VSC00,Postage & Distribution,370,17.02,Royal Mail,101554,27/09/2018,10263288,TC,,,,PN,2029.98,43346
Growth and Investment,Art Gallery and Museum,AGM00,Postage & Distribution,370,43.6,Royal Mail,101554,27/09/2018,10263500,TC,,,,PN,2253.23,43350
Growth and Investment,Building Control Services,BCS00,Postage & Distribution,370,2.02,Royal Mail,101554,27/09/2018,10263500,TC,,,,PN,2253.23,43350
Communities and Homes,Community Advice & Support Team,CAS00,Postage & Distribution,370,160.04,Royal Mail,101554,27/09/2018,10263500,TC,,,,PN,2253.23,43350
Communities and Homes,Central Business Support Services,CSS15,Postage & Distribution,370,617.02,Royal Mail,101554,27/09/2018,10263500,TC,,,,PN,2253.23,43350
Corporate Resources,Council Tax and NNDR Collection,CTX01,Postage & Distribution,370,584.73,Royal Mail,101554,27/09/2018,10263500,TC,,,,PN,2253.23,43350
Executive Director Office,Electoral Registration,ERG00,Postage & Distribution,370,287.39,Royal Mail,101554,27/09/2018,10263500,TC,,,,PN,2253.23,43350
Housing Revenue Account,Supervision and Management General,MAN00,Postage & Distribution,370,64.84,Royal Mail,101554,27/09/2018,10263500,TC,,,,PN,2253.23,43350
Growth and Investment,Planning General/Income,PLN00,Postage & Distribution,370,110.52,Royal Mail,101554,27/09/2018,10263500,TC,,,,PN,2253.23,43350
Environment and Public Realm,Domestic Waste Collection/Recycling,REF00,Postage & Distribution,370,5.28,Royal Mail,101554,27/09/2018,10263500,TC,,,,PN,2253.23,43350
Environment and Public Realm,Household Green Waste Collections,REF06,Postage & Distribution,370,1.86,Royal Mail,101554,27/09/2018,10263500,TC,,,,PN,2253.23,43350
Growth and Investment,Visitor Centre,VSC00,Postage & Distribution,370,0.4,Royal Mail,101554,27/09/2018,10263500,TC,,,,PN,2253.23,43350
Executive Director Office,Electoral Registration,ERG00,Postage & Distribution,370,3215.45,Royal Mail,101554,27/09/2018,10263573,TC,,,,PN,3858.54,43353
Growth and Investment,Art Gallery and Museum,AGM00,Postage & Distribution,370,2.18,Royal Mail,101554,27/09/2018,10263725,TC,,,,PN,1549.53,43357
Growth and Investment,Building Control Services,BCS00,Postage & Distribution,370,1.91,Royal Mail,101554,27/09/2018,10263725,TC,,,,PN,1549.53,43357
Communities and Homes,Community Advice & Support Team,CAS00,Postage & Distribution,370,149.2,Royal Mail,101554,27/09/2018,10263725,TC,,,,PN,1549.53,43357
Communities and Homes,Central Business Support Services,CSS15,Postage & Distribution,370,154,Royal Mail,101554,27/09/2018,10263725,TC,,,,PN,1549.53,43357
Corporate Resources,Council Tax and NNDR Collection,CTX01,Postage & Distribution,370,512.39,Royal Mail,101554,27/09/2018,10263725,TC,,,,PN,1549.53,43357
Executive Director Office,Electoral Registration,ERG00,Postage & Distribution,370,194.43,Royal Mail,101554,27/09/2018,10263725,TC,,,,PN,1549.53,43357
Housing Revenue Account,Supervision and Management General,MAN00,Postage & Distribution,370,142.33,Royal Mail,101554,27/09/2018,10263725,TC,,,,PN,1549.53,43357
Growth and Investment,Planning General/Income,PLN00,Postage & Distribution,370,99.67,Royal Mail,101554,27/09/2018,10263725,TC,,,,PN,1549.53,43357
Environment and Public Realm,Domestic Waste Collection/Recycling,REF00,Postage & Distribution,370,26.55,Royal Mail,101554,27/09/2018,10263725,TC,,,,PN,1549.53,43357
Environment and Public Realm,Household Green Waste Collections,REF06,Postage & Distribution,370,2.67,Royal Mail,101554,27/09/2018,10263725,TC,,,,PN,1549.53,43357
Housing Revenue Account,Unplanned Maintenance and Repair,UMR00,Postage & Distribution,370,2.18,Royal Mail,101554,27/09/2018,10263725,TC,,,,PN,1549.53,43357
Growth and Investment,Visitor Centre,VSC00,Postage & Distribution,370,3.78,Royal Mail,101554,27/09/2018,10263725,TC,,,,PN,1549.53,43357
Executive Director Office,Electoral Registration,ERG00,Postage & Distribution,370,1016.05,Royal Mail,101554,27/09/2018,10263806,TC,,,,PN,1219.26,43363
Corporate Resources,Corporate Property Central Utilities,CPA02,Water Services,143,612.84,Water Plus,101610,13/09/2018,10262398,TC,,,,PN,612.84,43314
Corporate Resources,Corporate Property Central Utilities,CPA02,Water Services,143,694.3,Water Plus,101610,13/09/2018,10262764,TC,,,,PN,694.3,43327
Corporate Resources,Corporate Property Central Utilities,CPA02,Water Services,143,601.14,Water Plus,101610,13/09/2018,10262773,TC,,,,PN,601.14,43327
Corporate Resources,Corporate Property Central Utilities,CPA02,Water Services,143,688.65,Water Plus,101610,13/09/2018,10262786,TC,,,,PN,688.65,43327
Housing Revenue Account,Lesley Souter House AP,AGP16,Water Services,143,598.02,Water Plus,101610,13/09/2018,10263671,TC,,,,PN,598.02,43355
Housing Revenue Account,Unplanned Maintenance and Repair,UMR00,Materials,303,519.15,Travis Perkins Trading Co Ltd,101732,06/09/2018,10263228,TC,,,408556737,PN,622.98,43342
Environment and Public Realm,Domestic Waste Collection/Recycling,REF00,Tyres,205,746.56,HI-Q Motorway,101736,13/09/2018,10263108,TC,,,100159429,PN,2119.97,43340
Environment and Public Realm,Trade Waste Collection,WWC01,Tyres,205,1020.08,HI-Q Motorway,101736,13/09/2018,10263108,TC,,,100159429,PN,2119.97,43340
Environment and Public Realm,Domestic Waste Collection/Recycling,REF00,Tyres,205,1093.85,HI-Q Motorway,101736,20/09/2018,10263652,TC,,,100159429,PN,2922.49,43355
Environment and Public Realm,Household Green Waste Collections,REF06,Tyres,205,501.04,HI-Q Motorway,101736,20/09/2018,10263652,TC,,,100159429,PN,2922.49,43355
Environment and Public Realm,Trade Waste Collection,WWC01,Tyres,205,840.52,HI-Q Motorway,101736,20/09/2018,10263652,TC,,,100159429,PN,2922.49,43355
Corporate Resources,Human Resources Centralised Services,RES31,Training fees,11,1350,West Midlands Employers,101880,13/09/2018,10263317,TC,,,GB729635111,PI,1620,43346
Growth and Investment,Planning General/Income,PLN00,Payments to Other Local Authorities,710,12050.84,Warwickshire County Council,101893,06/09/2018,10263412,TC,,,272426659,PN,14461.01,43348
Growth and Investment,Planning General/Income,PLN00,Payments to Other Local Authorities,710,13552,Warwickshire County Council,101893,06/09/2018,10263413,TC,,,272426659,PN,16262.4,43348
Capital Communities and Homes,CSW Superfast Broadband,RBB00,Miscellaneous Capital Expenditure,5020,9975,Warwickshire County Council,101893,27/09/2018,10263838,TC,,,272426659,PN,11970,43367
Capital Communities and Homes,CSW Superfast Broadband,RBB00,Capital Contract Payments,5000,51990,Warwickshire County Council,101893,27/09/2018,10263839,TC,,,272426659,PN,51990,43367
Growth and Investment,AGM Exhibitions/Outreach,AGM02,Other Miscellaneous Expenses,444,527,Moseley Signs,107594,27/09/2018,10263907,TC,,,273211976,PI,632.4,43367
Environment and Public Realm,Crematorium,CRM00,Medical Referees Fees,413,1461.5,Dunchurch Surgery,108687,06/09/2018,10263458,TC,,,,PN,1461.5,43348
Growth and Investment,The Benn Hall,BHL00,Building cleaning,170,111.5,1st Class Hygiene Ltd,110029,13/09/2018,10263154,TC,,,715230275,PN,691.5,43341
Environment and Public Realm,Town Centre Public Conveniences,PCS00,Building cleaning,170,464.75,1st Class Hygiene Ltd,110029,13/09/2018,10263154,TC,,,715230275,PN,691.5,43341
Environment and Public Realm,Garage,WVR00,Materials,303,37104.41,Watson Petroleum,110361,13/09/2018,10263537,TC,,,195046059,PI,44525.29,43353
Corporate Resources,Corporate Property R&M,CPA01,R&M External Contractors,100,431.16,Croxford Electrical Ltd,110451,20/09/2018,10263765,CS,,7751876,307 4408 76,PN,517.39,43360
Environment and Public Realm,Garage,WVR00,Materials,303,520,Vision Techniques (UK) LTD,111526,13/09/2018,10263191,TC,,,712562946,PN,624,43342
Communities and Homes,WTHEIP - Warwickshire Together Homelessness Early Intervention Project,HIP00,Software Maintenance,374,133409.5,Civica UK Ltd,112724,20/09/2018,10263150,TC,,1909454,391171065,PN,160091.4,43341
Environment and Public Realm,Crematorium,CRM00,Purchases for Resale,305,537.6,Teleshore (UK) Ltd,112868,13/09/2018,10263515,TC,,,655 7480 06,PN,645.12,43350
Environment and Public Realm,Parks,PKS00,External Contractor & Operator,742,7812.24,Bristol City Council,120274,06/09/2018,10263114,TC,,,139563445,PN,9374.69,43340
Housing Revenue Account,Multi-Storey Flats,MSF00,Consultancy Costs,740,7000,Michael Dyson Associates,121502,27/09/2018,10263497,TC,,2903668,567278204,PN,8400,43350
Housing Revenue Account,Maintenance of Open Spaces,MOS00,External Contractor & Operator,742,591.78,Brinklow Quarry Ltd,122921,13/09/2018,10263279,TC,,6765411,273163073,PN,710.14,43346
Environment and Public Realm,Gypsy & Traveller Enforcement,TRA00,Materials,303,1354.14,Mike Bs Security Locksmith Ltd,123947,27/09/2018,10263209,TC,,3680713,566125244,PN,1624.97,43342
Capital Housing Revenue Account,Purchase of Council Houses,PUR00,Capital Contract Payments,5000,450,George and Company (Surveyors) Ltd,126668,13/09/2018,10263489,TC,,,984706870,PI,540,43350
Corporate Resources,Corporate Assurance,RES40,Training fees,11,940,The Institute of Internal Auditors UK and Ireland,127836,27/09/2018,10263593,TC,,,,PI,1128,43353
Environment and Public Realm,Regulatory Services,REG00,New Equipment,300,9.26,Lyreco,129956,06/09/2018,10263307,TC,,,927265703,PI,526.03,43346
Communities and Homes,Central Business Support Services,CSS15,Stationery Supplies,350,429.1,Lyreco,129956,06/09/2018,10263307,TC,,,927265703,PI,526.03,43346
Capital Housing Revenue Account,Heating Upgrades,HIM01,Capital Contract Payments,5000,720,Cadent Gas Ltd,130213,06/09/2018,10263440,TC,,2006000,243133345,PN,720,43348
Environment and Public Realm,Town Centre Improvements,TWN00,Publicity & Marketing,377,2500,Touch Broadcasting Co Ltd T/A Rugby FM,131249,13/09/2018,10263384,TC,,,792071032,PN,3000,43347
Environment and Public Realm,Gypsy & Traveller Enforcement,TRA00,External Contractor & Operator,742,580,I D Welding & Fabrications,131407,27/09/2018,10263340,CS,,,687567859,PI,696,43346
Executive Director Office,Electoral Registration,ERG00,External Printing,352,15730.74,Electoral Reform Services,131623,27/09/2018,10263931,TC,,2263092,236 8689 15,PN,18876.89,43367
Environment and Public Realm,Car Parks General,CPK01,Cash Collection,744,1063.12,Jade Security Services Ltd,131711,06/09/2018,10263389,TC,,,642505654,PN,1275.74,43347
Capital Housing Revenue Account,Disabled Adaptations,HCR01,Capital Contract Payments,5000,2040,D K Builders,131946,27/09/2018,10263807,TC,,9067282,890892572,PN,2040,43363
Communities and Homes,CAST - Bed & Breakfast,CAS01,Bed and Breakfast Temporary Accommodation,146,700,N Mallidi T/A Park Side Guest House,132033,06/09/2018,10263253,TC,,,,PN,700,43343
Communities and Homes,CAST - Private Sector Leasing,CAS03,Bed and Breakfast Temporary Accommodation,146,630,N Mallidi T/A Park Side Guest House,132033,06/09/2018,10263271,TC,,,,PN,630,43346
Growth and Investment,Town Centre CCTV and Management,TVM00,Other Agencies,734,21460.59,Rugby First Ltd - BID,133176,13/09/2018,10263433,TC,,,874675571,PN,25752.71,43348
Environment and Public Realm,Rugby Town Development Activities,VSC10,Development Activities,450,5000,Rugby First Ltd - BID,133176,27/09/2018,10263812,TC,,,874675571,PN,6000,43364
Environment and Public Realm,Highways,HIG20,Materials,303,599.44,Breedon Aggregates England Limited,133309,06/09/2018,10263344,TC,,156531,650 2028 79,PI,719.33,43346
Housing Revenue Account,Fire Alarm maintenance,UMR13,R&M External Contractors,100,505.91,Sunfish Services Ltd,133886,13/09/2018,10263525,CS,,,845393893,PN,1414.74,43353
Housing Revenue Account,Miscellaneous Unplanned Maintenance and Repair,UMR17,R&M External Contractors,100,673.04,Sunfish Services Ltd,133886,13/09/2018,10263525,CS,,,845393893,PN,1414.74,43353
Communities and Homes,CL Grants,CGS00,Grants To Voluntary Organisations,720,1300,St Andrew's Church,135817,13/09/2018,10263534,NT,,,,PN,1300,43353
Growth and Investment,Grants and Subscriptions,LGS00,Grants To Voluntary Organisations,720,600,The Bradby Club,138171,13/09/2018,10263517,TC,,,,PN,600,43350
Growth and Investment,Planning General/Income,PLN00,Consultancy Costs,740,525,P Rhodes,140076,13/09/2018,10263499,TC,,,,PN,525,43350
Environment and Public Realm,Grounds Maintenance,PKS20,External Contractor & Operator,742,2850,D J Whitlock Plant Hire,140156,27/09/2018,10263869,CS,,,833940226,PN,3420,43367
Environment and Public Realm,Section 106 Grounds Maintenance,PKS16,External Contractor & Operator,742,2550,D J Whitlock Plant Hire,140156,27/09/2018,10263871,CS,,,833940226,PN,3060,43367
Housing Revenue Account,Multi-Storey Flats,MSF00,External Contractor & Operator,742,50641.92,StoneWall Security Ltd,140775,20/09/2018,10263644,TC,,6587546,937387578,PN,60770.3,43355
Environment and Public Realm,Car Parks General,CPK01,External Contractor & Operator,742,662.4,StoneWall Security Ltd,140775,13/09/2018,10263645,TC,,6587546,937387578,PN,794.88,43355
Housing Revenue Account,Multi-Storey Flats,MSF00,External Contractor & Operator,742,33761.28,StoneWall Security Ltd,140775,13/09/2018,10263646,TC,,6587546,937387578,PN,40513.54,43355
Housing Revenue Account,Solid fuel servicing,UMR12,R&M External Contractors,100,1020.75,Elite Sweep Service,141080,20/09/2018,10263754,TC,,,896 2613 85,PN,1284.9,43357
Capital Housing Revenue Account,Heating Upgrades,HIM01,Capital Contract Payments,5000,50,Elite Sweep Service,141080,20/09/2018,10263754,TC,,,896 2613 85,PN,1284.9,43357
Communities and Homes,Maintenance of Customer Services Systems,CIS21,Software Maintenance,374,3000.01,Access Intelligence Media & Comm Ltd,141464,27/09/2018,10263781,TC,,3819220,740314177,PN,3600.01,43361
Communities and Homes,CAST - Bed & Breakfast,CAS01,Bed and Breakfast Temporary Accommodation,146,1400,The Holly Bush Inn,141607,20/09/2018,10263747,TC,,,897504477,PN,1400,43357
Environment and Public Realm,Crematorium,CRM00,Telephone Expenses,371,538,Zen Internet Ltd,141612,06/09/2018,10263290,TC,,3101568,686049501,PN,645.6,43346
Communities and Homes,Broadband & internet,TEL01,Telephone Expenses,371,970.25,Zen Internet Ltd,141612,27/09/2018,10263951,TC,,3101568,686049501,PN,1164.3,43367
Housing Revenue Account,Gas Heating Systems,UMR01,R&M External Contractors,100,780,Certsure LLP,142076,20/09/2018,10263739,TC,,2513162,799123488,PN,936,43357
Housing Revenue Account,Housing Management,MAN22,Agency Staff,3,1459.81,Comensura Limited,142471,13/09/2018,10263124,TC,,4085767,755 3211 45,PN,8075.47,43341
Environment and Public Realm,Grounds Maintenance,PKS20,Agency Staff,3,1039.17,Comensura Limited,142471,13/09/2018,10263124,TC,,4085767,755 3211 45,PN,8075.47,43341
Environment and Public Realm,Domestic Waste Collection/Recycling,REF00,Agency Staff,3,3823.67,Comensura Limited,142471,13/09/2018,10263124,TC,,4085767,755 3211 45,PN,8075.47,43341
Environment and Public Realm,Street Cleansing General,STC00,Agency Staff,3,407,Comensura Limited,142471,13/09/2018,10263124,TC,,4085767,755 3211 45,PN,8075.47,43341
Housing Revenue Account,Housing Management,MAN22,Agency Staff,3,656.73,Comensura Limited,142471,13/09/2018,10263409,TC,,4085767,755 3211 45,PN,8972.87,43348
Environment and Public Realm,Grounds Maintenance,PKS20,Agency Staff,3,1382.48,Comensura Limited,142471,13/09/2018,10263409,TC,,4085767,755 3211 45,PN,8972.87,43348
Environment and Public Realm,Domestic Waste Collection/Recycling,REF00,Agency Staff,3,4259.25,Comensura Limited,142471,13/09/2018,10263409,TC,,4085767,755 3211 45,PN,8972.87,43348
Environment and Public Realm,Street Cleansing General,STC00,Agency Staff,3,362.08,Comensura Limited,142471,13/09/2018,10263409,TC,,4085767,755 3211 45,PN,8972.87,43348
Housing Revenue Account,Unplanned Maintenance and Repair,UMR00,Agency Staff,3,816.84,Comensura Limited,142471,13/09/2018,10263409,TC,,4085767,755 3211 45,PN,8972.87,43348
Environment and Public Realm,Crematorium,CRM00,Agency Staff,3,250.08,Comensura Limited,142471,13/09/2018,10263639,TC,,4085767,755 3211 45,PN,9061.07,43355
Housing Revenue Account,Housing Management,MAN22,Agency Staff,3,753.93,Comensura Limited,142471,13/09/2018,10263639,TC,,4085767,755 3211 45,PN,9061.07,43355
Environment and Public Realm,Domestic Waste Collection/Recycling,REF00,Agency Staff,3,5444.08,Comensura Limited,142471,13/09/2018,10263639,TC,,4085767,755 3211 45,PN,9061.07,43355
Environment and Public Realm,Street Cleansing General,STC00,Agency Staff,3,446.57,Comensura Limited,142471,13/09/2018,10263639,TC,,4085767,755 3211 45,PN,9061.07,43355
Housing Revenue Account,Unplanned Maintenance and Repair,UMR00,Agency Staff,3,656.23,Comensura Limited,142471,13/09/2018,10263639,TC,,4085767,755 3211 45,PN,9061.07,43355
Environment and Public Realm,Crematorium,CRM00,Agency Staff,3,250.08,Comensura Limited,142471,27/09/2018,10263801,TC,,4085767,755 3211 45,PN,10921.02,43362
Environment and Public Realm,Grounds Maintenance,PKS20,Agency Staff,3,2265.68,Comensura Limited,142471,27/09/2018,10263801,TC,,4085767,755 3211 45,PN,10921.02,43362
Environment and Public Realm,Domestic Waste Collection/Recycling,REF00,Agency Staff,3,5795.86,Comensura Limited,142471,27/09/2018,10263801,TC,,4085767,755 3211 45,PN,10921.02,43362
Environment and Public Realm,Street Cleansing General,STC00,Agency Staff,3,271.56,Comensura Limited,142471,27/09/2018,10263801,TC,,4085767,755 3211 45,PN,10921.02,43362
Housing Revenue Account,Unplanned Maintenance and Repair,UMR00,Agency Staff,3,517.82,Comensura Limited,142471,27/09/2018,10263801,TC,,4085767,755 3211 45,PN,10921.02,43362
Environment and Public Realm,Crematorium,CRM00,Agency Staff,3,250.08,Comensura Limited,142471,27/09/2018,10264032,TC,,4085767,755 3211 45,PN,9850.81,43369
Environment and Public Realm,Grounds Maintenance,PKS20,Agency Staff,3,1236.87,Comensura Limited,142471,27/09/2018,10264032,TC,,4085767,755 3211 45,PN,9850.81,43369
Environment and Public Realm,Domestic Waste Collection/Recycling,REF00,Agency Staff,3,5813.66,Comensura Limited,142471,27/09/2018,10264032,TC,,4085767,755 3211 45,PN,9850.81,43369
Environment and Public Realm,Street Cleansing General,STC00,Agency Staff,3,84.49,Comensura Limited,142471,27/09/2018,10264032,TC,,4085767,755 3211 45,PN,9850.81,43369
Housing Revenue Account,Unplanned Maintenance and Repair,UMR00,Agency Staff,3,824.04,Comensura Limited,142471,27/09/2018,10264032,TC,,4085767,755 3211 45,PN,9850.81,43369
Environment and Public Realm,Parks,PKS00,Maintenance of Equipment,301,625,Dura Sport (Leisure Care) Ltd,143619,27/09/2018,10263172,TC,,,747674291,PI,750,43341
Environment and Public Realm,Street Furniture,LEI22,Capital Contract Payments,5000,2350,Logic Street & Park Furniture,145331,06/09/2018,10263343,TC,,,125103171,PI,2820,43346
Housing Revenue Account,Sheltered Housing,AGP00,Electricity,130,189.8,Total Gas & Power Ltd,146631,20/09/2018,10263688,TC,,2172239,689638949,PN,9572.23,43356
Housing Revenue Account,Alfred Green Close AP,AGP01,Electricity,130,207.13,Total Gas & Power Ltd,146631,20/09/2018,10263688,TC,,2172239,689638949,PN,9572.23,43356
Housing Revenue Account,Avon Court AP,AGP02,Electricity,130,191.33,Total Gas & Power Ltd,146631,20/09/2018,10263688,TC,,2172239,689638949,PN,9572.23,43356
Housing Revenue Account,Dickinson Court AP,AGP03,Electricity,130,192.22,Total Gas & Power Ltd,146631,20/09/2018,10263688,TC,,2172239,689638949,PN,9572.23,43356
Housing Revenue Account,Duffy Place AP,AGP04,Electricity,130,175.32,Total Gas & Power Ltd,146631,20/09/2018,10263688,TC,,2172239,689638949,PN,9572.23,43356
Housing Revenue Account,Frederick Press Way AP,AGP06,Electricity,130,415.9,Total Gas & Power Ltd,146631,20/09/2018,10263688,TC,,2172239,689638949,PN,9572.23,43356
Housing Revenue Account,John Thwaites Close AP,AGP08,Electricity,130,78.4,Total Gas & Power Ltd,146631,20/09/2018,10263688,TC,,2172239,689638949,PN,9572.23,43356
Housing Revenue Account,Mercer Court AP,AGP09,Electricity,130,200.76,Total Gas & Power Ltd,146631,20/09/2018,10263688,TC,,2172239,689638949,PN,9572.23,43356
Housing Revenue Account,Pettiver Crescent I AP,AGP10,Electricity,130,203.05,Total Gas & Power Ltd,146631,20/09/2018,10263688,TC,,2172239,689638949,PN,9572.23,43356
Housing Revenue Account,Robotham Close AP,AGP11,Electricity,130,208.8,Total Gas & Power Ltd,146631,20/09/2018,10263688,TC,,2172239,689638949,PN,9572.23,43356
Housing Revenue Account,Stacey Court AP,AGP12,Electricity,130,53.39,Total Gas & Power Ltd,146631,20/09/2018,10263688,TC,,2172239,689638949,PN,9572.23,43356
Housing Revenue Account,Stretton Court AP,AGP13,Electricity,130,86.26,Total Gas & Power Ltd,146631,20/09/2018,10263688,TC,,2172239,689638949,PN,9572.23,43356
Housing Revenue Account,Sun Street/Windsor Street AP,AGP14,Electricity,130,200.16,Total Gas & Power Ltd,146631,20/09/2018,10263688,TC,,2172239,689638949,PN,9572.23,43356
Housing Revenue Account,Lesley Souter House AP,AGP16,Electricity,130,459.35,Total Gas & Power Ltd,146631,20/09/2018,10263688,TC,,2172239,689638949,PN,9572.23,43356
Housing Revenue Account,Tanser Court AP,AGP17,Electricity,130,373.82,Total Gas & Power Ltd,146631,20/09/2018,10263688,TC,,2172239,689638949,PN,9572.23,43356
Housing Revenue Account,Edward Court AP,AGP19,Electricity,130,204.29,Total Gas & Power Ltd,146631,20/09/2018,10263688,TC,,2172239,689638949,PN,9572.23,43356
Housing Revenue Account,Albert Square AP,AGP20,Electricity,130,585.38,Total Gas & Power Ltd,146631,20/09/2018,10263688,TC,,2172239,689638949,PN,9572.23,43356
Housing Revenue Account,Eliot Court AP,AGP25,Electricity,130,56,Total Gas & Power Ltd,146631,20/09/2018,10263688,TC,,2172239,689638949,PN,9572.23,43356
Housing Revenue Account,Clare Court Site,AGP27,Electricity,130,27.44,Total Gas & Power Ltd,146631,20/09/2018,10263688,TC,,2172239,689638949,PN,9572.23,43356
Housing Revenue Account,Alexandra/James Court AP,AGP30,Electricity,130,130.66,Total Gas & Power Ltd,146631,20/09/2018,10263688,TC,,2172239,689638949,PN,9572.23,43356
Housing Revenue Account,Hirst Close AP,AGP33,Electricity,130,68.07,Total Gas & Power Ltd,146631,20/09/2018,10263688,TC,,2172239,689638949,PN,9572.23,43356
Housing Revenue Account,Assheton Close AP,AGP36,Electricity,130,41.85,Total Gas & Power Ltd,146631,20/09/2018,10263688,TC,,2172239,689638949,PN,9572.23,43356
Housing Revenue Account,Bennett Court/Warwick Road AP,AGP38,Electricity,130,34.27,Total Gas & Power Ltd,146631,20/09/2018,10263688,TC,,2172239,689638949,PN,9572.23,43356
Housing Revenue Account,Brookside Pailton AP,AGP40,Electricity,130,49.7,Total Gas & Power Ltd,146631,20/09/2018,10263688,TC,,2172239,689638949,PN,9572.23,43356
Housing Revenue Account,Clifton Road AP,AGP41,Electricity,130,17.95,Total Gas & Power Ltd,146631,20/09/2018,10263688,TC,,2172239,689638949,PN,9572.23,43356
Housing Revenue Account,Deepmore Road/Lytham Road AP,AGP42,Electricity,130,140.74,Total Gas & Power Ltd,146631,20/09/2018,10263688,TC,,2172239,689638949,PN,9572.23,43356
Housing Revenue Account,Edmondson Close Dunchurch AP,AGP44,Electricity,130,121.69,Total Gas & Power Ltd,146631,20/09/2018,10263688,TC,,2172239,689638949,PN,9572.23,43356
Housing Revenue Account,Featherbed Lane I AP,AGP45,Electricity,130,155.24,Total Gas & Power Ltd,146631,20/09/2018,10263688,TC,,2172239,689638949,PN,9572.23,43356
Housing Revenue Account,Fox Close AP,AGP47,Electricity,130,42.17,Total Gas & Power Ltd,146631,20/09/2018,10263688,TC,,2172239,689638949,PN,9572.23,43356
Housing Revenue Account,Great Balance Brinklow AP,AGP48,Electricity,130,22.97,Total Gas & Power Ltd,146631,20/09/2018,10263688,TC,,2172239,689638949,PN,9572.23,43356
Housing Revenue Account,Harold Cox Place AP,AGP51,Electricity,130,57.91,Total Gas & Power Ltd,146631,20/09/2018,10263688,TC,,2172239,689638949,PN,9572.23,43356
Housing Revenue Account,Jackson Road I AP,AGP53,Electricity,130,23.35,Total Gas & Power Ltd,146631,20/09/2018,10263688,TC,,2172239,689638949,PN,9572.23,43356
Housing Revenue Account,Lever Road I AP,AGP57,Electricity,130,129.46,Total Gas & Power Ltd,146631,20/09/2018,10263688,TC,,2172239,689638949,PN,9572.23,43356
Housing Revenue Account,Meadow Way/Primrose Court AP,AGP58,Electricity,130,82.01,Total Gas & Power Ltd,146631,20/09/2018,10263688,TC,,2172239,689638949,PN,9572.23,43356
Housing Revenue Account,Norman Road AP,AGP60,Electricity,130,10.03,Total Gas & Power Ltd,146631,20/09/2018,10263688,TC,,2172239,689638949,PN,9572.23,43356
Housing Revenue Account,Patterdale AP,AGP61,Electricity,130,22.85,Total Gas & Power Ltd,146631,20/09/2018,10263688,TC,,2172239,689638949,PN,9572.23,43356
Housing Revenue Account,The Kent AP,AGP67,Electricity,130,45.98,Total Gas & Power Ltd,146631,20/09/2018,10263688,TC,,2172239,689638949,PN,9572.23,43356
Housing Revenue Account,Victoria Street/Lawford Road AP,AGP68,Electricity,130,12.66,Total Gas & Power Ltd,146631,20/09/2018,10263688,TC,,2172239,689638949,PN,9572.23,43356
Housing Revenue Account,Parkfield Road/Lea Crescent AP,AGP71,Electricity,130,138.09,Total Gas & Power Ltd,146631,20/09/2018,10263688,TC,,2172239,689638949,PN,9572.23,43356
Housing Revenue Account,Pennington Street/Round Street AP,AGP72,Electricity,130,83.73,Total Gas & Power Ltd,146631,20/09/2018,10263688,TC,,2172239,689638949,PN,9572.23,43356
Housing Revenue Account,Control Centre CCTV,CCE01,Electricity,130,449.47,Total Gas & Power Ltd,146631,20/09/2018,10263688,TC,,2172239,689638949,PN,9572.23,43356
Housing Revenue Account,Supervision and Management General,MAN00,Electricity,130,147.53,Total Gas & Power Ltd,146631,20/09/2018,10263688,TC,,2172239,689638949,PN,9572.23,43356
Housing Revenue Account,Multi-Storey Flats,MSF00,Electricity,130,2435.66,Total Gas & Power Ltd,146631,20/09/2018,10263688,TC,,2172239,689638949,PN,9572.23,43356
Communities and Homes,Woodside Park,TVR00,Electricity,130,339.9,Total Gas & Power Ltd,146631,20/09/2018,10263688,TC,,2172239,689638949,PN,9572.23,43356
Capital Communities and Homes,Biart Place - Capital,BIA00,Capital Compensation Payments,5010,5387.48,Personal Redacted Data,146665,06/09/2018,10263320,NT,,,,PN,5387.48,43346
Environment and Public Realm,Domestic Waste Collection/Recycling,REF00,Training fees,11,510,Weightron Bilanciai Limited,146759,06/09/2018,10263326,TC,,,458223052,PI,612,43346
Growth and Investment,Planning General/Income,PLN00,Consultancy Costs,740,650,Mallard Consultancy Ltd,146807,27/09/2018,10263542,TC,,3486991,705838620,PI,780,43353
Housing Revenue Account,Unplanned Maintenance and Repair,UMR00,Training fees,11,550,Environmental Essentials Ltd,146842,27/09/2018,10263961,TC,,5097507,844887474,PN,660,43367
Growth and Investment,On Track,LSD04,Additional Pension Payments,14,24700.98,WCC Pension Fund,146914,06/09/2018,10262584,NT,,,,PN,24700.98,43320
Corporate Resources,Retired Employees,RET00,Employers' Superannuation Contribution,2,25916.67,WCC Pension Fund,146914,06/09/2018,10263304,NT,,,,PN,25916.67,43346
Corporate Resources,Retired Employees,RET00,Additional Pension Payments,14,9492,WCC Pension Fund,146914,06/09/2018,10263441,NT,,,,PN,9492,43348
Environment and Public Realm,Domestic Waste Collection/Recycling,REF00,External Contractor & Operator,742,850,James Baxter Haulage Ltd,147159,13/09/2018,10263050,TC,,,620070986,PN,1020,43336
Environment and Public Realm,Domestic Waste Collection/Recycling,REF00,External Contractor & Operator,742,680,James Baxter Haulage Ltd,147159,13/09/2018,10263246,TC,,,620070986,PN,816,43343
Environment and Public Realm,Domestic Waste Collection/Recycling,REF00,External Contractor & Operator,742,680,James Baxter Haulage Ltd,147159,13/09/2018,10263252,TC,,,620070986,PN,816,43343
Environment and Public Realm,Domestic Waste Collection/Recycling,REF00,External Contractor & Operator,742,1020,James Baxter Haulage Ltd,147159,13/09/2018,10263462,TC,,,620070986,PN,1224,43348
Environment and Public Realm,Domestic Waste Collection/Recycling,REF00,External Contractor & Operator,742,1020,James Baxter Haulage Ltd,147159,13/09/2018,10263463,TC,,,620070986,PN,1224,43348
Environment and Public Realm,Domestic Waste Collection/Recycling,REF00,External Contractor & Operator,742,680,James Baxter Haulage Ltd,147159,27/09/2018,10263712,TC,,,620070986,PN,816,43356
Environment and Public Realm,Domestic Waste Collection/Recycling,REF00,External Contractor & Operator,742,1190,James Baxter Haulage Ltd,147159,27/09/2018,10263831,TC,,,620070986,PN,1428,43364
Growth and Investment,Planning General/Income,PLN00,External Legal Costs,741,900,Personal Redacted Data,147226,27/09/2018,10263924,TC,,,941251545,PN,1080,43367
Corporate Resources,Corporate Property R&M,CPA01,R&M External Contractors,100,639.66,AirTech Controls Ltd,147262,13/09/2018,10263273,TC,,3262605,670991601,PN,767.59,43346
Growth and Investment,Art Gallery and Museum,AGM00,Window Cleaning,172,375,SJ Cleaning (Midlands) Ltd,147273,27/09/2018,10263843,TC,,6855140,930667320,PN,1461.6,43367
Growth and Investment,The Benn Hall,BHL00,Window Cleaning,172,106,SJ Cleaning (Midlands) Ltd,147273,27/09/2018,10263843,TC,,6855140,930667320,PN,1461.6,43367
Environment and Public Realm,Cemeteries General,CEM00,Window Cleaning,172,45,SJ Cleaning (Midlands) Ltd,147273,27/09/2018,10263843,TC,,6855140,930667320,PN,1461.6,43367
Environment and Public Realm,Car Parks General,CPK01,Window Cleaning,172,21,SJ Cleaning (Midlands) Ltd,147273,27/09/2018,10263843,TC,,6855140,930667320,PN,1461.6,43367
Corporate Resources,Town Hall,OFF00,Window Cleaning,172,568,SJ Cleaning (Midlands) Ltd,147273,27/09/2018,10263843,TC,,6855140,930667320,PN,1461.6,43367
Environment and Public Realm,Town Centre Public Conveniences,PCS00,Window Cleaning,172,21,SJ Cleaning (Midlands) Ltd,147273,27/09/2018,10263843,TC,,6855140,930667320,PN,1461.6,43367
Environment and Public Realm,Parks,PKS00,Window Cleaning,172,41,SJ Cleaning (Midlands) Ltd,147273,27/09/2018,10263843,TC,,6855140,930667320,PN,1461.6,43367
Environment and Public Realm,WSU Depot,WDP00,Window Cleaning,172,41,SJ Cleaning (Midlands) Ltd,147273,27/09/2018,10263843,TC,,6855140,930667320,PN,1461.6,43367
Environment and Public Realm,Domestic Waste Collection/Recycling,REF00,Contract Hire,220,875,Trash UK Limited,147379,13/09/2018,10263478,TC,,3862427,738802807,PN,1050,43349
Environment and Public Realm,Domestic Waste Collection/Recycling,REF00,Contract Hire,220,775,Trash UK Limited,147379,13/09/2018,10263479,TC,,3862427,738802807,PN,930,43349
Environment and Public Realm,Domestic Waste Collection/Recycling,REF00,Contract Hire,220,2170,Trash UK Limited,147379,13/09/2018,10263480,TC,,3862427,738802807,PN,2604,43349
Environment and Public Realm,Domestic Waste Collection/Recycling,REF00,Contract Hire,220,-620,Trash UK Limited,147379,13/09/2018,10263611,TC,,3862427,738802807,PN,-744,43353
Environment and Public Realm,Domestic Waste Collection/Recycling,REF00,Contract Hire,220,775,Trash UK Limited,147379,27/09/2018,10263956,TC,,3862427,738802807,PN,930,43367
Environment and Public Realm,Domestic Waste Collection/Recycling,REF00,Contract Hire,220,775,Trash UK Limited,147379,27/09/2018,10263957,TC,,3862427,738802807,PN,930,43367
Growth and Investment,Visitor Centre,VSC00,Purchases for Resale,305,808.42,Star Editions Ltd,147676,27/09/2018,10264017,TC,,6628133,922794209,PI,970.07,43368
Environment and Public Realm,Grounds Maintenance,PKS20,Vehicle Repair and Maintenance,200,926.35,Tallis Amos Group Limited,147758,06/09/2018,10263014,TC,,,377274127,PN,1111.63,43335
Environment and Public Realm,Grounds Maintenance,PKS20,Vehicle Repair and Maintenance,200,1583.12,Tallis Amos Group Limited,147758,13/09/2018,10263335,TC,,,377274127,PN,1899.75,43346
Environment and Public Realm,Parks,PKS00,Contract Hire,220,425,Fyna Vehicle Hire Limited,147964,06/09/2018,10263319,TC,,,120223048,PN,510,43346
Growth and Investment,Hall of Fame,TRY00,External Contractor & Operator,742,1356,Halo FX Limited,148073,27/09/2018,10263791,TC,,7639114,132 0707 56,PN,1627.2,43361
Growth and Investment,Hall of Fame,TRY00,Publicity & Marketing,377,1193.08,Oxygen Graphics,148137,13/09/2018,10263505,TC,,,980489574,PN,1431.69,43350
Growth and Investment,Art Gallery and Museum,AGM00,Recruitment Expenses,12,110,Team Prevent UK Ltd,148151,20/09/2018,10263697,TC,,,883064608,PN,672,43356
Communities and Homes,Customer Support Services,CSS00,Recruitment Expenses,12,22,Team Prevent UK Ltd,148151,20/09/2018,10263697,TC,,,883064608,PN,672,43356
Communities and Homes,Apprenticeship Scheme,CSS25,Recruitment Expenses,12,44,Team Prevent UK Ltd,148151,20/09/2018,10263697,TC,,,883064608,PN,672,43356
Growth and Investment,Play Projects (revenue),LSD09,Recruitment Expenses,12,22,Team Prevent UK Ltd,148151,20/09/2018,10263697,TC,,,883064608,PN,672,43356
Housing Revenue Account,Housing Management,MAN22,Recruitment Expenses,12,22,Team Prevent UK Ltd,148151,20/09/2018,10263697,TC,,,883064608,PN,672,43356
Environment and Public Realm,Regulatory Services,REG00,Recruitment Expenses,12,22,Team Prevent UK Ltd,148151,20/09/2018,10263697,TC,,,883064608,PN,672,43356
Communities and Homes,ITC & Support Services,CIS10,Employee wellbeing/Other employee expenses,21,91,Team Prevent UK Ltd,148151,20/09/2018,10263697,TC,,,883064608,PN,672,43356
Communities and Homes,Customer Support Services,CSS00,Employee wellbeing/Other employee expenses,21,22,Team Prevent UK Ltd,148151,20/09/2018,10263697,TC,,,883064608,PN,672,43356
Growth and Investment,Play Projects (revenue),LSD09,Employee wellbeing/Other employee expenses,21,91,Team Prevent UK Ltd,148151,20/09/2018,10263697,TC,,,883064608,PN,672,43356
Environment and Public Realm,Domestic Waste Collection/Recycling,REF00,Employee wellbeing/Other employee expenses,21,182,Team Prevent UK Ltd,148151,20/09/2018,10263697,TC,,,883064608,PN,672,43356
Environment and Public Realm,Street Cleansing General,STC00,Employee wellbeing/Other employee expenses,21,22,Team Prevent UK Ltd,148151,20/09/2018,10263697,TC,,,883064608,PN,672,43356
Housing Revenue Account,Unplanned Maintenance and Repair,UMR00,Employee wellbeing/Other employee expenses,21,22,Team Prevent UK Ltd,148151,20/09/2018,10263697,TC,,,883064608,PN,672,43356
Growth and Investment,Art Gallery and Museum,AGM00,Recruitment Expenses,12,44,Team Prevent UK Ltd,148151,20/09/2018,10263698,TC,,,883064608,PN,1312,43356
Communities and Homes,ITC & Support Services,CIS10,Recruitment Expenses,12,22,Team Prevent UK Ltd,148151,20/09/2018,10263698,TC,,,883064608,PN,1312,43356
Corporate Resources,Legal Services,DEM20,Recruitment Expenses,12,22,Team Prevent UK Ltd,148151,20/09/2018,10263698,TC,,,883064608,PN,1312,43356
Environment and Public Realm,Licencing,LIC00,Recruitment Expenses,12,44,Team Prevent UK Ltd,148151,20/09/2018,10263698,TC,,,883064608,PN,1312,43356
Growth and Investment,Searches Team,PLN05,Recruitment Expenses,12,22,Team Prevent UK Ltd,148151,20/09/2018,10263698,TC,,,883064608,PN,1312,43356
Environment and Public Realm,Regulatory Services,REG00,Recruitment Expenses,12,22,Team Prevent UK Ltd,148151,20/09/2018,10263698,TC,,,883064608,PN,1312,43356
Growth and Investment,Head of Growth & Investment,SMT01,Recruitment Expenses,12,22,Team Prevent UK Ltd,148151,20/09/2018,10263698,TC,,,883064608,PN,1312,43356
Communities and Homes,Community Advice & Support Team,CAS00,Employee wellbeing/Other employee expenses,21,182,Team Prevent UK Ltd,148151,20/09/2018,10263698,TC,,,883064608,PN,1312,43356
Communities and Homes,Business Support Services,CSS10,Employee wellbeing/Other employee expenses,21,91,Team Prevent UK Ltd,148151,20/09/2018,10263698,TC,,,883064608,PN,1312,43356
Housing Revenue Account,Housing Management,MAN22,Employee wellbeing/Other employee expenses,21,91,Team Prevent UK Ltd,148151,20/09/2018,10263698,TC,,,883064608,PN,1312,43356
Environment and Public Realm,Grounds Maintenance,PKS20,Employee wellbeing/Other employee expenses,21,182,Team Prevent UK Ltd,148151,20/09/2018,10263698,TC,,,883064608,PN,1312,43356
Environment and Public Realm,Domestic Waste Collection/Recycling,REF00,Employee wellbeing/Other employee expenses,21,364,Team Prevent UK Ltd,148151,20/09/2018,10263698,TC,,,883064608,PN,1312,43356
Environment and Public Realm,Household Green Waste Collections,REF06,Employee wellbeing/Other employee expenses,21,182,Team Prevent UK Ltd,148151,20/09/2018,10263698,TC,,,883064608,PN,1312,43356
Housing Revenue Account,Unplanned Maintenance and Repair,UMR00,Employee wellbeing/Other employee expenses,21,22,Team Prevent UK Ltd,148151,20/09/2018,10263698,TC,,,883064608,PN,1312,43356
Capital Communities and Homes,Biart Place - Capital,BIA00,Capital Compensation Payments,5010,1750,Personal Redacted Data,148371,06/09/2018,10263316,NT,,,,PN,1750,43346
Capital Communities and Homes,Biart Place - Capital,BIA00,Capital Compensation Payments,5010,5640.24,Personal Redacted Data,148371,20/09/2018,10263793,NT,,,,PN,5640.24,43361
Capital Housing Revenue Account,Disabled Adaptations,HCR01,Capital Contract Payments,5000,519.56,AKW Medicare Ltd,148464,13/09/2018,10263672,TC,,2764920,1047446,PN,623.47,43355
Capital Housing Revenue Account,Disabled Adaptations,HCR01,Capital Contract Payments,5000,731.56,AKW Medicare Ltd,148464,13/09/2018,10263673,TC,,2764920,1047446,PN,877.87,43355
Capital Housing Revenue Account,Disabled Adaptations,HCR01,Capital Contract Payments,5000,519.56,AKW Medicare Ltd,148464,13/09/2018,10263674,TC,,2764920,1047446,PN,623.47,43355
Capital Housing Revenue Account,Disabled Adaptations,HCR01,Capital Contract Payments,5000,519.56,AKW Medicare Ltd,148464,27/09/2018,10263827,TC,,2764920,1047446,PN,623.47,43364
Environment and Public Realm,Whitehall Recreation Ground,LEI23,Capital Contract Payments,5000,26207.2,J P Landscapes & Construction Ltd,148502,27/09/2018,10264037,CS,,4840565,844 2378 18,PN,31448.64,43369
Environment and Public Realm,Domestic Waste Collection/Recycling,REF00,Vehicle Repair and Maintenance,200,527.05,Vicary Plant Spares Limited,148824,13/09/2018,10263177,TC,,3910268,747802904,PN,632.46,43342
Housing Revenue Account,Gas Heating Systems,UMR01,R&M External Contractors,100,28384.79,Robert Heath Heating Ltd,148858,20/09/2018,10263694,CS,,1773699,927 4909 89,PN,34061.75,43356
Communities and Homes,CAST - Private Sector Leasing,CAS03,R&M External Contractors,100,66.3,Robert Heath Heating Ltd,148858,20/09/2018,10263717,CS,,1773699,927 4909 89,PN,14709.64,43356
Housing Revenue Account,Gas Heating Systems,UMR01,R&M External Contractors,100,11364.42,Robert Heath Heating Ltd,148858,20/09/2018,10263717,CS,,1773699,927 4909 89,PN,14709.64,43356
Housing Revenue Account,Repairs and Maintenance - Void works,UMR09,R&M External Contractors,100,827.31,Robert Heath Heating Ltd,148858,20/09/2018,10263717,CS,,1773699,927 4909 89,PN,14709.64,43356
Environment and Public Realm,Domestic Waste Collection/Recycling,REF00,Vehicle Repair and Maintenance,200,220.73,NTM-GB Limited,148883,13/09/2018,10263202,TC,,4984293,825 2090 49,PN,529.74,43342
Environment and Public Realm,Street Cleansing General,STC00,Vehicle Repair and Maintenance,200,110.36,NTM-GB Limited,148883,13/09/2018,10263202,TC,,4984293,825 2090 49,PN,529.74,43342
Environment and Public Realm,Trade Waste Collection,WWC01,Vehicle Repair and Maintenance,200,110.36,NTM-GB Limited,148883,13/09/2018,10263202,TC,,4984293,825 2090 49,PN,529.74,43342
Communities and Homes,CAST - Private Sector Leasing,CAS03,Building cleaning,170,1476.58,Solutions Services,148937,06/09/2018,10263211,TC,,,831753431,PN,1771.9,43342
Growth and Investment,The Benn Hall,BHL00,Purchases for Resale,305,853.28,Brakes,148974,13/09/2018,10263567,TC,,2035315,202935388,PN,995.49,43353
Growth and Investment,The Benn Hall,BHL00,Purchases for Resale,305,572.37,Brakes,148974,20/09/2018,10263707,TC,,2035315,202935388,PN,628.12,43356
Environment and Public Realm,Domestic Waste Collection/Recycling,REF00,Contract Hire,220,1090,R D Geeson (Derby) Ltd T/A Harprule Hire,148979,06/09/2018,10263338,TC,,757186,125259869,PI,1308,43346
Environment and Public Realm,Parks,PKS00,Materials,303,486.4,AHS Ltd,149255,20/09/2018,10263663,TC,,2803955,621583942,PI,583.68,43355
Environment and Public Realm,Garage,WVR00,Materials,303,737.52,Tom Tom International BV,149311,20/09/2018,10263625,TC,,,273433560,PN,885.02,43354
Housing Revenue Account,Control Centre CCTV,CCE01,Maintenance of Equipment,301,2666.66,Close Circuit Security Services Ltd,149426,13/09/2018,10263524,TC,,3543850,695360895,PN,3199.99,43353
Housing Revenue Account,Miscellaneous Unplanned Maintenance and Repair,UMR17,R&M External Contractors,100,324.67,Close Circuit Security Services Ltd,149426,27/09/2018,10263949,TC,,3543850,695360895,PN,1378.62,43367
Housing Revenue Account,Control Centre CCTV,CCE01,Maintenance of Equipment,301,824.18,Close Circuit Security Services Ltd,149426,27/09/2018,10263949,TC,,3543850,695360895,PN,1378.62,43367
Environment and Public Realm,Crematorium,CRM00,Organist Fees,414,1146,Tracey Daulman,149686,27/09/2018,10263841,TC,,,,PN,1146,43367
Capital Housing Revenue Account,Heating Upgrades,HIM01,Capital Contract Payments,5000,1071.12,PTS Rugby,149845,06/09/2018,10263225,TC,,,408556737,PN,1285.34,43342
Capital Housing Revenue Account,Heating Upgrades,HIM01,Capital Contract Payments,5000,5303.88,PTS Rugby,149845,06/09/2018,10263226,TC,,,408556737,PN,6364.66,43342
Capital Housing Revenue Account,Heating Upgrades,HIM01,Capital Contract Payments,5000,1071.12,PTS Rugby,149845,06/09/2018,10263368,TC,,,408556737,PN,1285.34,43347
Capital Housing Revenue Account,Heating Upgrades,HIM01,Capital Contract Payments,5000,2775.93,PTS Rugby,149845,27/09/2018,10263853,TC,,,408556737,PN,3331.12,43367
Housing Revenue Account,Repairs and Maintenance - Void works,UMR09,R&M External Contractors,100,499.68,Moores Furniture,150018,06/09/2018,10263249,TC,,1083749,613366162,PN,35082.4,43343
Capital Housing Revenue Account,Kitchen Modifications,HIK10,Capital Contract Payments,5000,28735.65,Moores Furniture,150018,06/09/2018,10263249,TC,,1083749,613366162,PN,35082.4,43343
Environment and Public Realm,Street Cleansing General,STC00,Vehicle Repair and Maintenance,200,369,Lodge Tyre Co Ltd,150185,20/09/2018,10263568,TC,,531793,,PN,560.4,43353
Housing Revenue Account,Unplanned Maintenance and Repair,UMR00,Vehicle Repair and Maintenance,200,98,Lodge Tyre Co Ltd,150185,20/09/2018,10263568,TC,,531793,,PN,560.4,43353
Growth and Investment,Gypsy and Traveller Enforcement,PLN10,External Contractor & Operator,742,1230,Rugby Welding Services,150322,27/09/2018,10263925,TC,,,,PI,1230,43367
Executive Director Office,"Communications, Consultation and Information Team",BTR20,Publicity & Marketing,377,2099.84,Gala Tent Ltd,150376,27/09/2018,10263932,TC,,4270117,737733313,PI,2519.81,43367
Environment and Public Realm,Parks,PKS00,Materials,303,735,Rimo Growers Ltd,150510,13/09/2018,10263597,TC,,10647096,163829583,PI,735,43353
Housing Revenue Account,Multi-Storey Flats,MSF00,Other Miscellaneous Expenses,444,15126.04,Building Research Establishment Ltd,150826,06/09/2018,10259462,TC,,3319324,689949927,PN,18151.25,43223
Housing Revenue Account,Multi-Storey Flats,MSF00,Consultancy Costs,740,27431.77,Building Research Establishment Ltd,150826,06/09/2018,10260909,TC,,3319324,689949927,PN,32918.12,43271
Housing Revenue Account,Multi-Storey Flats,MSF00,Other Miscellaneous Expenses,444,13822.5,Building Research Establishment Ltd,150826,27/09/2018,10262322,TC,,3319324,689949927,PN,16587,43313
Capital Housing Revenue Account,Purchase of Council Houses,PUR00,Capital Contract Payments,5000,13051.92,HMRC Shipley,150936,06/09/2018,10263424,NT,,,,PN,13051.92,43348
Capital Housing Revenue Account,Purchase of Council Houses,PUR00,Capital Contract Payments,5000,16314.89,HMRC Shipley,150936,13/09/2018,10263531,NT,,,,PN,16314.89,43353
Housing Revenue Account,Lift maintenance,UMR14,R&M External Contractors,100,2655,Lift & Engineering Services Ltd,150984,13/09/2018,10263522,TC,,1913516,695967844',PN,3186,43353
Growth and Investment,The Benn Hall,BHL00,Special Events/Activities,447,621.88,Mad Science of the West Midlands,151002,06/09/2018,10263418,TC,,7672147,,PN,746.25,43348
Environment and Public Realm,Grounds Maintenance,PKS20,External Contractor & Operator,742,7640.96,Glendale Grounds Management Ltd,151025,13/09/2018,10263392,TC,,,203324952,PN,9169.15,43347
Environment and Public Realm,Grounds Maintenance,PKS20,External Contractor & Operator,742,5900,Glendale Grounds Management Ltd,151025,06/09/2018,10263393,TC,,,203324952,PN,7080,43347
Housing Revenue Account,Unplanned Maintenance and Repair,UMR00,Materials,303,1202,DCTUK T/A Discount Carpet Tiles,151067,27/09/2018,10263758,TC,,6130667,903973512,PN,1442.4,43360
Communities and Homes,ITC & Support Services,CIS10,Software Maintenance,374,23000,PCS Business Systems Ltd,151097,06/09/2018,10263385,TC,,3082062,918599762,PN,27600,43347
Communities and Homes,ITC & Support Services,CIS10,Software Maintenance,374,21000,PCS Business Systems Ltd,151097,06/09/2018,10263459,TC,,3082062,918599762,PN,25200,43348
Capital Housing Revenue Account,Housing Management System,HCE08,IT Capital Expenditure,5025,28315.2,PCS Business Systems Ltd,151097,20/09/2018,10263613,TC,,3082062,918599762,PI,33978.25,43353
Capital Communities and Homes,ICT refresh programme - Infrastructure,CMP01,IT Capital Expenditure,5025,28315.2,PCS Business Systems Ltd,151097,20/09/2018,10263614,TC,,3082062,918599762,PI,33978.25,43353
Capital Communities and Homes,ICT Renewal Programme,CMP00,IT Capital Expenditure,5025,28315.2,PCS Business Systems Ltd,151097,20/09/2018,10263615,TC,,3082062,918599762,PI,33978.25,43353
Capital Housing Revenue Account,Lifeline Renewal Programme,HCE21,IT Capital Expenditure,5025,7873.46,Exchange Communications,151167,06/09/2018,10257879,TC,,SC499057,208391707,PI,9448.15,43178
Communities and Homes,CAST - Private Sector Leasing,CAS03,Private Sector Leasing Scheme Properties,148,2175,Personal Redacted Data,151176,20/09/2018,10263799,TC,,,,PN,2175,43362
Housing Revenue Account,Laundry equipment maintenance,UMR15,R&M External Contractors,100,2782,JLA Ltd,151207,27/09/2018,10263832,TC,,1094178,566894869,PN,3338.4,43364
Housing Revenue Account,Supervision and Management General,MAN00,Consultancy Costs,740,3500,Glancy Nicholls Architects Ltd,151225,13/09/2018,10263400,TC,,5141809,846478287,PI,4200,43347
Growth and Investment,Art Gallery and Museum,AGM00,Childcare vouchers admin fee,7,9.72,Busy Bees Benefits Ltd,151230,13/09/2018,10263607,NT,,6758298,,PN,3479.38,43353
Communities and Homes,ITC & Support Services,CIS10,Childcare vouchers admin fee,7,0.4,Busy Bees Benefits Ltd,151230,13/09/2018,10263607,NT,,6758298,,PN,3479.38,43353
Corporate Resources,Council Tax and NNDR Collection,CTX01,Childcare vouchers admin fee,7,0.8,Busy Bees Benefits Ltd,151230,13/09/2018,10263607,NT,,6758298,,PN,3479.38,43353
Corporate Resources,Legal Services,DEM20,Childcare vouchers admin fee,7,5.33,Busy Bees Benefits Ltd,151230,13/09/2018,10263607,NT,,6758298,,PN,3479.38,43353
Growth and Investment,Economic Development General,ECD00,Childcare vouchers admin fee,7,2.4,Busy Bees Benefits Ltd,151230,13/09/2018,10263607,NT,,6758298,,PN,3479.38,43353
Communities and Homes,WTHEIP - Warwickshire Together Homelessness Early Intervention Project,HIP00,Childcare vouchers admin fee,7,9.72,Busy Bees Benefits Ltd,151230,13/09/2018,10263607,NT,,6758298,,PN,3479.38,43353
Environment and Public Realm,Licencing,LIC00,Childcare vouchers admin fee,7,3.2,Busy Bees Benefits Ltd,151230,13/09/2018,10263607,NT,,6758298,,PN,3479.38,43353
Growth and Investment,Sports and Recreation,LSD03,Childcare vouchers admin fee,7,7.71,Busy Bees Benefits Ltd,151230,13/09/2018,10263607,NT,,6758298,,PN,3479.38,43353
Housing Revenue Account,Housing Management,MAN22,Childcare vouchers admin fee,7,9.72,Busy Bees Benefits Ltd,151230,13/09/2018,10263607,NT,,6758298,,PN,3479.38,43353
Growth and Investment,Planning General/Income,PLN00,Childcare vouchers admin fee,7,14.52,Busy Bees Benefits Ltd,151230,13/09/2018,10263607,NT,,6758298,,PN,3479.38,43353
Environment and Public Realm,Domestic Waste Collection/Recycling,REF00,Childcare vouchers admin fee,7,1,Busy Bees Benefits Ltd,151230,13/09/2018,10263607,NT,,6758298,,PN,3479.38,43353
Environment and Public Realm,Regulatory Services,REG00,Childcare vouchers admin fee,7,19.44,Busy Bees Benefits Ltd,151230,13/09/2018,10263607,NT,,6758298,,PN,3479.38,43353
Corporate Resources,Financial Services,RES10,Childcare vouchers admin fee,7,21.44,Busy Bees Benefits Ltd,151230,13/09/2018,10263607,NT,,6758298,,PN,3479.38,43353
Corporate Resources,Human Resources,RES30,Childcare vouchers admin fee,7,1.2,Busy Bees Benefits Ltd,151230,13/09/2018,10263607,NT,,6758298,,PN,3479.38,43353
Housing Revenue Account,Unplanned Maintenance and Repair,UMR00,Childcare vouchers admin fee,7,14.48,Busy Bees Benefits Ltd,151230,13/09/2018,10263607,NT,,6758298,,PN,3479.38,43353
Growth and Investment,Visitor Centre,VSC00,Childcare vouchers admin fee,7,2,Busy Bees Benefits Ltd,151230,13/09/2018,10263607,NT,,6758298,,PN,3479.38,43353
Environment and Public Realm,Trade Waste Collection,WWC01,Childcare vouchers admin fee,7,9.72,Busy Bees Benefits Ltd,151230,13/09/2018,10263607,NT,,6758298,,PN,3479.38,43353
Communities and Homes,Warwickshire On Line Partnership,JCC10,Payments to Other Local Authorities,710,5789,Firmstep,151293,27/09/2018,10264061,TC,,,,PN,6946.8,43369
Capital Communities and Homes,Biart Place - Capital,BIA00,Capital Compensation Payments,5010,4632.67,Personal Redacted Data,151311,13/09/2018,10263587,NT,,,,PN,4632.67,43353
Environment and Public Realm,Crime and Disorder Activities,CAD00,Development Activities,450,450,Buddi Ltd,151339,20/09/2018,10263543,TC,,5308826,867696451,PI,540,43353
Growth and Investment,Visitor Centre,VSC00,Events Tickets - Standard Rated,1404,3616.67,Rugby Football Union,151470,13/09/2018,10263632,TC,,,656958083,PN,4340,43354
Communities and Homes,Broadband & internet,TEL01,Telephone Expenses,371,9970.13,HighSpeed Office Ltd,151543,27/09/2018,10263507,TC,,3935705,766384980,PN,11964.16,43350
Growth and Investment,Planning General/Income,PLN00,Consultancy Costs,740,3577.44,Nigel Reeves Planning & Urban Design Ltd,151614,06/09/2018,10263362,TC,,,,PN,3577.44,43347
Growth and Investment,The Benn Hall,BHL00,Purchases for Resale,305,1075.5,Drays Wholesale Limited,151618,13/09/2018,10263603,TC,,,128586875,PN,1290.6,43353
Growth and Investment,The Benn Hall,BHL00,Purchases for Resale,305,695.69,Drays Wholesale Limited,151618,20/09/2018,10263720,TC,,,128586875,PN,834.83,43357
Growth and Investment,The Benn Hall,BHL00,Purchases for Resale,305,2478.34,Drays Wholesale Limited,151618,27/09/2018,10263945,TC,,,128586875,PN,2974.01,43367
Environment and Public Realm,WSU Depot,WDP00,Personal Protective Clothing,340,437.8,SMI Group UK,151681,13/09/2018,10262611,TC,,7644080,217124496,PN,525.36,43321
Communities and Homes,CAST - Private Sector Leasing,CAS03,Private Sector Leasing Scheme Properties,148,4650,Personal Redacted Data,151687,13/09/2018,10263647,TC,,,,PN,4650,43355
Communities and Homes,CAST - Private Sector Leasing,CAS03,Private Sector Leasing Scheme Properties,148,3600,Personal Redacted Data,151687,20/09/2018,10263729,TC,,,,PN,3600,43357
Communities and Homes,CAST - Private Sector Leasing,CAS03,Water Services,143,511.36,Severn Trent Water Ltd (Res),151689,13/09/2018,10263476,TC,,,,PN,511.36,43349
Capital Housing Revenue Account,Heating Upgrades,HIM01,Capital Contract Payments,5000,29037.7,UK Gas Services Ltd,151764,20/09/2018,10263693,CS,,2976617,974960175,PN,34845.24,43356
Capital Housing Revenue Account,Heating Upgrades,HIM01,Capital Contract Payments,5000,3666.4,UK Gas Services Ltd,151764,27/09/2018,10263962,CS,,2976617,974960175,PN,4399.68,43367
Capital Housing Revenue Account,Heating Upgrades,HIM01,Capital Contract Payments,5000,5461.08,UK Gas Services Ltd,151764,27/09/2018,10264062,CS,,2976617,974960175,PN,6553.3,43369
Housing Revenue Account,Control Centre (HRA),CCE00,New Equipment,300,1980,Tunstall Healthcare,151791,06/09/2018,10263200,TC,,1332249,182879709,PI,2376,43342
Growth and Investment,Hall of Fame,TRY00,Publicity & Marketing,377,1544,JCDecaux UK Ltd - Rail,151817,13/09/2018,10263600,TC,,1679670,539090043,PI,1852.8,43353
Capital Communities and Homes,Biart Place - Capital,BIA00,Capital Contract Payments,5000,13446.25,Ove Arup & partners Ltd,151827,06/09/2018,10263219,TC,,1312453,524461265,PN,16135.5,43342
Corporate Resources,Human Resources Centralised Services,RES31,Employee wellbeing/Other employee expenses,21,699,The Healthy Employee Ltd,151833,20/09/2018,10263726,TC,,7773695,263862972,PN,838.8,43357
Corporate Resources,Human Resources Centralised Services,RES31,Recruitment Expenses,12,2025,Growth Hub Business Solutions,151836,06/09/2018,10263445,TC,,10369498,66928359,PI,2430,43348
Corporate Resources,Human Resources Centralised Services,RES31,Recruitment Expenses,12,2695,Growth Hub Business Solutions,151836,06/09/2018,10263446,TC,,10369498,66928359,PI,3234,43348
Corporate Resources,Human Resources Centralised Services,RES31,Recruitment Expenses,12,3975,Growth Hub Business Solutions,151836,13/09/2018,10263594,TC,,10369498,66928359,PI,4770,43353
Capital Communities and Homes,ICT Renewal Programme,CMP00,IT Capital Expenditure,5025,5253.36,PCM Technology Solutions Ltd,151837,20/09/2018,10263715,TC,,103216566,264198089,PI,6304.03,43356
Capital Communities and Homes,ICT refresh programme - Infrastructure,CMP01,IT Capital Expenditure,5025,494.54,PCM Technology Solutions Ltd,151837,27/09/2018,10263901,TC,,103216566,264198089,PI,593.45,43367
Capital Housing Revenue Account,Housing Management System,HCE08,IT Capital Expenditure,5025,2520,Gravitas Recruitment Group,151921,20/09/2018,10263240,TC,,6959984,974844372,PN,3024,43343
Capital Housing Revenue Account,Housing Management System,HCE08,IT Capital Expenditure,5025,5355,Gravitas Recruitment Group,151921,20/09/2018,10263743,TC,,6959984,974844372,PN,6426,43357
Communities and Homes,WTHEIP - Warwickshire Together Homelessness Early Intervention Project,HIP00,Training fees,11,1500,Ignition Creative Learning Ltd,152005,06/09/2018,10263221,TC,,5103969,811535359,PN,1800,43342
Communities and Homes,CAST - Private Sector Leasing,CAS03,Private Sector Leasing Scheme Properties,148,1425.06,Personal Redacted Data,152010,13/09/2018,10263586,NT,,,,PN,1425.06,43353
Communities and Homes,CAST - Private Sector Leasing,CAS03,Private Sector Leasing Scheme Properties,148,2400,Personal Redacted Data,152030,27/09/2018,10264064,NT,,,,PN,2400,43369
Growth and Investment,The Benn Hall,BHL00,Events Tickets - Zero Rated,1405,1188.45,Legacy Wrestling,152055,27/09/2018,10264020,TC,,,,PN,1188.45,43369
Communities and Homes,Nightly Paid Self Contained Accommodation,CAS07,Nightly Self Contained Accommodation,149,14823,Centennial Property T/A The Housing Network,152075,13/09/2018,10263378,TC,,,,PN,14823,43347
Communities and Homes,CAST - Private Sector Leasing,CAS03,Private Sector Leasing Scheme Properties,148,4800,Personal Redacted Data,152129,06/09/2018,10263327,NT,,,,PN,4800,43346
Communities and Homes,CAST - Private Sector Leasing,CAS03,Private Sector Leasing Scheme Properties,148,2175,Personal Redacted Data,152159,27/09/2018,10263944,NT,,,,PN,2175,43367
Capital Communities and Homes,Biart Place - Capital,BIA00,Capital Compensation Payments,5010,4645.12,Personal Redacted Data,152191,06/09/2018,10263207,NT,,,,PN,4645.12,43342
Corporate Resources,Financial Services,RES10,Consultancy Costs,740,1000,Simpson Judge Ltd,152194,27/09/2018,10263941,TC,,8405434,160790606,PI,1200,43367
Communities and Homes,ICT refresh programme - AV equipment,CMP38,IT Capital Expenditure,5025,6910,21st Century AV Limited,152200,20/09/2018,10262847,TC,,3700669,728816895,PI,8292,43328
Capital Communities and Homes,Biart Place - Capital,BIA00,Capital Compensation Payments,5010,4688.56,Personal Redacted Data,152220,06/09/2018,10263324,NT,,,,PN,4688.56,43346
Capital Communities and Homes,Bell House Redevelopment,BEL01,Capital Contract Payments,5000,1500,Parish & Shires Tree Specialists,152223,20/09/2018,10263738,TC,,,,PI,1500,43357
Growth and Investment,Grants and Subscriptions,LGS00,Grants To Voluntary Organisations,720,1000,Church Lawford Saplings Stay and Play,152264,06/09/2018,10263204,NT,,,,PN,1000,43342
Capital Communities and Homes,Biart Place - Capital,BIA00,Capital Compensation Payments,5010,1500,Personal Redacted Data,152266,06/09/2018,10263328,NT,,,,PN,1500,43346
Executive Director Office,Democratic Services,DEM10,Other Miscellaneous Expenses,444,975,Personal Redacted Data,152267,06/09/2018,10263352,NT,,,,PN,975,43347
Capital Communities and Homes,Biart Place - Capital,BIA00,Capital Compensation Payments,5010,1750,Personal Redacted Data,152269,06/09/2018,10263407,NT,,,,PN,1750,43348
Corporate Resources,Financial Services,RES10,Training fees,11,2750,T2P,152270,13/09/2018,10263585,TC,,,982131720,PN,3300,43353
Capital Communities and Homes,ICT refresh programme - Infrastructure,CMP01,IT Capital Expenditure,5025,1075,Eurotech Computer Services Ltd,152271,27/09/2018,10263920,TC,,3746274,724721250,PI,1290,43367
Communities and Homes,CAST - Private Sector Leasing,CAS03,Private Sector Leasing Scheme Properties,148,2625,Personal Redacted Data,152273,13/09/2018,10263620,NT,,,,PN,2625,43354
Capital Communities and Homes,Biart Place - Capital,BIA00,Capital Compensation Payments,5010,1750,Personal Redacted Data,152276,20/09/2018,10263686,NT,,,,PN,1750,43356
Capital Communities and Homes,Biart Place - Capital,BIA00,Capital Compensation Payments,5010,1750,Personal Redacted Data,152285,20/09/2018,10263787,NT,,,,PN,1750,43361
Communities and Homes,CAST - Bed & Breakfast,CAS01,Bed and Breakfast Temporary Accommodation,146,460.83,The Carlton,,11/09/2018,47254,,,,,,,
Communities and Homes,CAST - Bed & Breakfast,CAS01,Bed and Breakfast Temporary Accommodation,146,460.83,The Carlton,,11/09/2018,47254,,,,,,,
Communities and Homes,CAST - Bed & Breakfast,CAS01,Bed and Breakfast Temporary Accommodation,146,460.83,The Carlton,,11/09/2018,47254,,,,,,,
Communities and Homes,CAST - Bed & Breakfast,CAS01,Bed and Breakfast Temporary Accommodation,146,460.83,The Carlton,,11/09/2018,47254,,,,,,,
Communities and Homes,CAST - Bed & Breakfast,CAS01,Bed and Breakfast Temporary Accommodation,146,460.83,The Carlton,,11/09/2018,47254,,,,,,,
Communities and Homes,CAST - Bed & Breakfast,CAS01,Bed and Breakfast Temporary Accommodation,146,460.83,The Carlton,,11/09/2018,47254,,,,,,,
Environment and Public Realm,Highways,HIG20,Vehicle Running Costs,201,522,DVLA,,11/09/2018,47254,,,,,,,
Communities and Homes,CAST - Bed & Breakfast,CAS01,Bed and Breakfast Temporary Accommodation,146,617.5,The Plough Hotel,,11/09/2018,47254,,,,,,,
Environment and Public Realm,Domestic Waste Collection/Recycling,REF00,Vehicle Running Costs,201,652.5,DVLA,,11/09/2018,47254,,,,,,,
Communities and Homes,CAST - Bed & Breakfast,CAS01,Bed and Breakfast Temporary Accommodation,146,741,The Plough Hotel,,11/09/2018,47254,,,,,,,
Communities and Homes,CAST - Bed & Breakfast,CAS01,Bed and Breakfast Temporary Accommodation,146,2726.5,Travelodge,,17/09/2018,47154,,,,,,,
Communities and Homes,Private Sector Leasing,CAS06,Rent In Advance,137,4575,Life Investments,,10/09/2018,47108,,,,,,,
Housing Revenue Account,Supervision and Management General,MAN00,External Legal Costs,741,1725,HMCTS,,17/09/2018,47153,,,,,,,
Outside portfolio expenditure,User Balance Sheet Cost Centre,BSU,Collection Fund,9476,1021370,Cov & Warks Pooling,,18/09/2018,47165,,,,,,,
Outside portfolio expenditure,User Balance Sheet Cost Centre,BSU,Collection Fund,9476,386129,WCC County Fund,,19/09/2018,47178,,,,,,,
Outside portfolio expenditure,User Balance Sheet Cost Centre,BSU,Collection Fund,9476,2009417,DCLG,,19/09/2018,47177,,,,,,,
Corporate Resources,General Financial Services,GFS00,Payment Card Costs,445,2896.94,Capita,,19/09/2018,47176,,,,,,,
Communities and Homes,ITC & Support Services,CIS21,Software Maintenance,374,679.78,Bottomline Technologies,,26/09/2018,47234,,,,,,,
Communities and Homes,Biart Place - Capital,BIA00,Capital Compensation Payments,5010,1750,Personal Redacted Data,,24/09/2018,47209,,,,,,,
Communities and Homes,Maintenace of Customer,CIS21,Software Maintenance,374,7550.7,MHR,,28/09/2018,47257,,,,,,,
Outside portfolio expenditure,User Balance Sheet Cost Centre,BSU,Payroll,9250,1575.36,Personal Redacted Data,,28/09/2018,47249,,,,,,,
